bitfinex-derivatives/quotes_SOLF0:USTF0_20250514
["timestamp","ask_amount","ask_price","bid_price","bid_amount"]
[1747193309554,59.72,179.62,179.53,59.74]
[1747193310361,59.72,179.62,179.58,5.5685]
[1747193310861,59.72,179.62,179.53,59.74]
[1747193311362,63.23987396,179.62,179.53,59.74]
[1747193311554,5.5691,179.58,179.54,5.5699]
[1747193311755,59.68,179.57,179.53,59.74]
[1747193312255,59.68,179.57,179.56,5.5694]
[1747193322361,59.68,179.57,179.55,5.5696]
[1747193322770,59.68,179.57,179.54,5.5699]
[1747193323766,59.68,179.57,179.53,65.3102]
[1747193323966,65.2494,179.57,179.53,65.3102]
[1747193325662,65.2494,179.57,179.54,5.57]
[1747193327070,59.68,179.57,179.54,5.57]
[1747193327272,59.68,179.57,179.51,3.51987396]
[1747193327572,59.74,179.64,179.51,3.51987396]
[1747193327772,60.60608299,179.63,179.58,5.5687]
[1747193328174,5.5676,179.62,179.58,5.5687]
[1747193328369,65.1676,179.62,179.58,5.5687]
[1747193330669,65.1676,179.62,179.54,59.6]
[1747193330670,59.6,179.62,179.54,63.11987396]
[1747193330874,59.6,179.61,179.54,63.11987396]
[1747193332676,59.6,179.61,179.58,5.5686]
[1747193333674,59.6,179.61,179.59,5.5685]
[1747193334772,59.74,179.64,179.54,63.11987396]
[1747193335075,5.5667,179.65,179.54,63.11987396]
[1747193335076,59.58,179.63,179.57,3.51987396]
[1747193335575,59.58,179.63,179.61,5.5677]
[1747193335875,5.5666,179.65,179.61,5.5677]
[1747193336073,65.127,179.64,179.6,5.5681]
[1747193336375,59.56,179.64,179.57,3.51987396]
[1747193337177,59.56,179.64,179.55,3.51987396]
[1747193338778,59.56,179.64,179.58,5.5686]
[1747193338977,59.56,179.64,179.55,3.51987396]
[1747193339979,5.5674,179.63,179.55,3.51987396]
[1747193340483,59.56,179.64,179.55,3.51987396]
[1747193340675,59.54,179.64,179.55,3.51987396]
[1747193340979,59.54,179.64,179.6,5.568]
[1747193341178,59.54,179.64,179.55,3.51987396]
[1747193342881,59.54,179.64,179.61,5.5677]
[1747193343079,59.54,179.64,179.55,3.51987396]
[1747193343280,423.6,179.66,179.59,3.51987396]
[1747193343479,59.54,179.66,179.59,63.11987396]
[1747193343974,59.54,179.66,179.65,5.5666]
[1747193345283,59.52,179.68,179.65,5.5666]
[1747193345483,59.52,179.68,179.64,5.5668]
[1747193345987,59.52,179.68,179.65,5.5665]
[1747193346284,65.1652,179.7,179.65,5.5665]
[1747193346482,59.52,179.69,179.65,5.5665]
[1747193346682,59.52,179.69,179.66,5.5663]
[1747193346879,59.52,179.68,179.62,3.51987396]
[1747193347082,59.52,179.68,179.67,5.566]
[1747193347283,59.52,179.68,179.62,3.51987396]
[1747193347782,59.52,179.68,179.65,5.5665]
[1747193348185,59.52,179.68,179.62,3.51987396]
[1747193348382,59.52,179.68,179.64,5.5666]
[1747193349182,59.52,179.68,179.62,3.51987396]
[1747193349387,59.52,179.68,179.59,59.58]
[1747193349886,59.52,179.68,179.6,5.5681]
[1747193350086,59.52,179.68,179.57,63.1888]
[1747193350280,63.03987396,179.68,179.58,5.5687]
[1747193350482,1.00508034,179.67,179.58,5.5687]
[1747193350884,1.00508034,179.67,179.57,59.58]
[1747193351889,5.5682,179.6,179.56,5.5692]
[1747193352087,59.48,179.59,179.53,59.58]
[1747193353482,5.5689,179.58,179.54,5.5698]
[1747193354091,5.5689,179.58,179.55,5.5696]
[1747193354990,59.48,179.6,179.53,59.58]
[1747193355389,59.48,179.6,179.57,5.5689]
[1747193357385,59.48,179.6,179.58,5.5687]
[1747193358390,59.58,179.63,179.53,63.09987396]
[1747193358598,59.48,179.62,179.53,63.09987396]
[1747193358988,59.48,179.62,179.58,5.5685]
[1747193359489,65.0475,179.62,179.53,63.09987396]
[1747193359891,59.48,179.62,179.53,63.09987396]
[1747193360194,59.48,179.62,179.58,5.5686]
[1747193360891,59.48,179.62,179.59,5.5685]
[1747193361093,59.48,179.62,179.53,63.09987396]
[1747193361590,59.48,179.62,179.56,5.5693]
[1747193362292,5.5681,179.61,179.56,5.5693]
[1747193362693,59.48,179.62,179.56,5.5693]
[1747193363289,59.48,179.62,179.53,59.58]
[1747193363791,5.5687,179.59,179.55,5.5694]
[1747193364690,5.5681,179.61,179.56,5.5692]
[1747193364889,59.48,179.62,179.53,59.58]
[1747193365390,65.0476,179.62,179.53,63.09987396]
[1747193365591,59.48,179.62,179.53,63.09987396]
[1747193366193,59.58,179.63,179.53,63.09987396]
[1747193366494,59.44,179.62,179.6,5.5679]
[1747193366691,59.44,179.63,179.6,5.5679]
[1747193367087,59.44,179.64,179.56,3.51987396]
[1747193367494,423.48,179.67,179.56,3.51987396]
[1747193367697,59.44,179.66,179.57,3.6607]
[1747193367993,65.0064,179.66,179.58,59.48]
[1747193368191,59.44,179.66,179.58,59.48]
[1747193368593,59.48,179.67,179.59,3.51987396]
[1747193368891,59.44,179.67,179.59,3.51987396]
[1747193369092,59.44,179.67,179.64,5.5666]
[1747193369792,59.44,179.67,179.59,3.51987396]
[1747193369992,59.44,179.67,179.59,62.95987396]
[1747193370398,59.44,179.67,179.65,5.5663]
[1747193370595,218.31088047,179.7,179.63,59.46]
[1747193370801,277.73088047,179.7,179.63,59.46]
[1747193371594,277.73088047,179.7,179.67,5.5657]
[1747193372002,277.73088047,179.7,179.63,59.46]
[1747193372299,218.31088047,179.7,179.63,59.46]
[1747193372497,277.73088047,179.7,179.63,59.46]
[1747193372897,218.31088047,179.7,179.69,5.5654]
[1747193373097,59.42,179.72,179.65,3.51987396]
[1747193373495,59.42,179.72,179.7,5.565]
[1747193373800,59.4,179.73,179.7,5.565]
[1747193376100,65.0237,179.75,179.71,5.5646]
[1747193376300,59.4,179.74,179.71,5.5646]
[1747193377099,218.22344022,179.77,179.68,62.97987396]
[1747193377401,277.60344022,179.77,179.68,62.97987396]
[1747193377592,277.60344022,179.77,179.75,5.5635]
[1747193378499,277.60344022,179.77,179.73,5.5638]
[1747193378700,277.60344022,179.77,179.68,62.97987396]
[1747193379802,277.60344022,179.77,179.73,5.5639]
[1747193380204,277.60344022,179.77,179.68,62.97987396]
[1747193380403,277.60344022,179.77,179.71,5.5646]
[1747193380596,277.60344022,179.77,179.68,62.97987396]
[1747193381003,277.60344022,179.77,179.72,5.5642]
[1747193381597,283.16634022,179.77,179.72,5.5642]
[1747193383006,277.60344022,179.77,179.7,5.565]
[1747193383297,277.60344022,179.77,179.68,59.44]
[1747193383502,5.5641,179.74,179.68,59.44]
[1747193383697,277.60344022,179.77,179.68,65.0057]
[1747193384806,5.5642,179.73,179.69,5.5654]
[1747193385703,5.5639,179.74,179.69,5.5654]
[1747193385904,277.60344022,179.77,179.68,62.95987396]
[1747193386404,5.5634,179.76,179.68,62.95987396]
[1747193387104,5.5634,179.76,179.71,5.5645]
[1747193387503,277.60344022,179.77,179.68,62.95987396]
[1747193387707,277.60344022,179.77,179.69,5.5651]
[1747193388002,277.60344022,179.77,179.68,59.44]
[1747193388603,5.5635,179.75,179.71,5.5647]
[1747193389503,5.5633,179.76,179.71,5.5647]
[1747193390404,5.5633,179.76,179.72,5.5644]
[1747193390801,283.16644022,179.77,179.68,59.44]
[1747193391301,218.22344022,179.77,179.68,59.44]
[1747193391505,59.32,179.76,179.68,59.44]
[1747193392004,59.32,179.76,179.74,5.5635]
[1747193392201,59.32,179.76,179.7,3.51987396]
[1747193392698,59.3,179.8,179.7,3.51987396]
[1747193393203,59.3,179.8,179.77,5.5628]
[1747193394705,59.3,179.8,179.76,5.5631]
[1747193395804,64.862,179.8,179.76,5.5631]
[1747193396106,59.3,179.8,179.74,64.8838]
[1747193396707,5.5626,179.78,179.75,5.5635]
[1747193397207,5.5623,179.79,179.76,5.5632]
[1747193397802,59.3,179.8,179.76,5.5632]
[1747193398003,59.3,179.8,179.74,59.32]
[1747193398205,59.28,179.79,179.74,59.32]
[1747193398405,5.5614,179.82,179.74,59.32]
[1747193398607,59.28,179.79,179.74,59.32]
[1747193399413,59.28,179.79,179.77,5.5628]
[1747193400415,59.28,179.79,179.76,5.5631]
[1747193400808,59.28,179.79,179.74,59.32]
[1747193401008,59.28,179.79,179.73,5.5641]
[1747193401411,5.5631,179.77,179.73,5.5641]
[1747193401612,59.28,179.79,179.7,59.3]
[1747193401815,5.5627,179.78,179.7,59.3]
[1747193402313,5.5627,179.78,179.74,5.5636]
[1747193402812,59.28,179.79,179.73,5.5641]
[1747193403614,5.5639,179.74,179.71,5.5646]
[1747193403917,59.26,179.74,179.68,59.3]
[1747193404116,59.26,179.74,179.66,59.3]
[1747193404617,62.77987396,179.74,179.66,59.3]
[1747193404814,59.3,179.73,179.66,59.3]
[1747193405012,5.5647,179.72,179.62,59.3]
[1747193405211,64.6947,179.73,179.62,59.3]
[1747193405707,59.3,179.73,179.64,3.51987396]
[1747193405917,59.26,179.74,179.64,3.51987396]
[1747193406116,59.26,179.74,179.7,5.5649]
[1747193406916,64.8239,179.74,179.7,5.5649]
[1747193408416,59.26,179.74,179.67,59.3]
[1747193408612,59.26,179.74,179.67,62.81987396]
[1747193408917,369.5627,179.78,179.73,5.5641]
[1747193409114,59.24,179.77,179.73,5.5641]
[1747193409415,59.24,179.77,179.67,62.81987396]
[1747193412020,59.22,179.77,179.68,59.22]
[1747193413623,59.22,179.78,179.74,5.5636]
[1747193414518,59.22,179.78,179.72,59.32]
[1747193416117,59.22,179.8,179.73,3.51987396]
[1747193416622,59.2,179.81,179.78,5.5625]
[1747193416822,59.2,179.81,179.73,7.32967396]
[1747193417121,59.2,179.81,179.79,5.5622]
[1747193417317,59.32,179.83,179.72,59.32]
[1747193417620,59.2,179.82,179.71,3.51987396]
[1747193417819,59.2,179.82,179.72,59.2]
[1747193418018,3.51987396,179.79,179.65,5.31377396]
[1747193418223,64.6259,179.78,179.66,59.2]
[1747193418419,5.5642,179.73,179.68,5.5656]
[1747193418620,59.2,179.72,179.68,5.5656]
[1747193419223,59.2,179.72,179.69,5.5652]
[1747193419427,59.2,179.72,179.66,59.2]
[1747193420122,5.563,179.77,179.72,5.5643]
[1747193420324,59.2,179.76,179.68,3.51987396]
[1747193420620,364.0,179.79,179.75,5.5633]
[1747193420822,59.18,179.8,179.74,59.2]
[1747193421024,59.18,179.8,179.71,3.51987396]
[1747193421220,59.18,179.8,179.72,59.2]
[1747193421523,64.742,179.8,179.71,3.51987396]
[1747193421724,59.18,179.8,179.68,3.51987396]
[1747193422019,59.2,179.79,179.72,5.5643]
[1747193422222,64.5616,179.79,179.72,5.5643]
[1747193422827,64.5616,179.79,179.74,5.5638]
[1747193423322,5.5636,179.75,179.71,5.5647]
[1747193423526,64.7436,179.75,179.71,5.5647]
[1747193425527,59.18,179.75,179.62,3.51987396]
[1747193425717,62.71987396,179.74,179.48,27.8581]
[1747193425923,3.51987396,179.7,179.63,5.567]
[1747193426119,118.38,179.69,179.63,5.567]
[1747193426323,118.38,179.69,179.59,59.2]
[1747193426525,5.566,179.68,179.59,59.2]
[1747193426727,118.38,179.69,179.59,59.2]
[1747193427026,5.5658,179.68,179.64,5.5667]
[1747193427226,118.38,179.69,179.59,59.2]
[1747193427628,118.38,179.69,179.66,5.5661]
[1747193428827,123.9455,179.69,179.66,5.5661]
[1747193429731,118.38,179.69,179.67,5.566]
[1747193429931,59.18,179.69,179.67,5.566]
[1747193430125,59.18,179.69,179.6,3.51987396]
[1747193430419,64.7455,179.69,179.65,5.5665]
[1747193431324,59.18,179.69,179.66,5.5663]
[1747193431732,64.7457,179.69,179.6,3.51987396]
[1747193432533,64.7457,179.69,179.64,5.5667]
[1747193433332,5.5658,179.68,179.64,5.5667]
[1747193433725,59.18,179.69,179.64,5.5667]
[1747193434029,59.18,179.69,179.65,5.5665]
[1747193435026,64.7456,179.69,179.65,5.5665]
[1747193435728,59.18,179.69,179.59,59.2]
[1747193436134,59.18,179.69,179.6,3.51987396]
[1747193437040,59.18,179.69,179.65,5.5664]
[1747193437536,59.18,179.69,179.66,5.5663]
[1747193439036,59.18,179.69,179.65,5.5665]
[1747193439335,59.18,179.69,179.6,3.51987396]
[1747193439835,64.7456,179.69,179.6,3.51987396]
[1747193440130,64.7456,179.69,179.64,5.5667]
[1747193440730,59.18,179.69,179.58,484.4443]
[1747193440939,62.73987396,179.68,179.58,543.6643]
[1747193441337,5.567,179.64,179.6,5.568]
[1747193441639,59.14,179.64,179.58,543.6643]
[1747193442940,59.14,179.64,179.63,5.5672]
[1747193444038,59.14,179.67,179.6,3.51987396]
[1747193444942,59.14,179.67,179.65,5.5664]
[1747193445136,59.14,179.67,179.6,3.51987396]
[1747193446743,59.14,179.67,179.65,5.5665]
[1747193448541,59.14,179.67,179.66,5.5663]
[1747193449042,59.12,179.7,179.68,5.5654]
[1747193449345,59.12,179.72,179.63,3.51987396]
[1747193450145,59.12,179.72,179.62,59.1]
[1747193450546,3.51987396,179.7,179.62,59.1]
[1747193450739,59.1,179.69,179.62,59.1]
[1747193451046,5.5669,179.64,179.59,5.5682]
[1747193451238,59.1,179.69,179.58,59.1]
[1747193451239,59.12,179.63,179.58,59.1]
[1747193451638,64.6874,179.63,179.59,5.5683]
[1747193452248,59.12,179.63,179.58,59.1]
[1747193452747,64.6873,179.63,179.59,5.5684]
[1747193453251,59.12,179.63,179.58,59.1]
[1747193453440,59.12,179.63,179.6,5.5681]
[1747193454148,59.12,179.63,179.61,5.5678]
[1747193455651,59.12,179.63,179.6,5.5681]
[1747193455852,59.12,179.63,179.58,59.1]
[1747193456650,5.5706,179.68,179.58,59.1]
[1747193456956,59.1,179.67,179.65,5.5663]
[1747193457154,59.1,179.67,179.63,59.12]
[1747193458155,59.1,179.67,179.63,64.687]
[1747193458449,59.1,179.67,179.63,59.12]
[1747193458646,59.1,179.67,179.64,5.5667]
[1747193459054,59.1,179.67,179.63,59.12]
[1747193459255,59.1,179.67,179.66,5.5663]
[1747193460352,5.5645,179.72,179.68,5.5656]
[1747193460552,59.12,179.74,179.64,3.51987396]
[1747193460757,59.08,179.73,179.64,3.51987396]
[1747193460955,59.08,179.73,179.64,5.38457396]
[1747193461556,59.08,179.74,179.71,5.5646]
[1747193461756,59.08,179.74,179.68,59.12]
[1747193462955,59.08,179.74,179.7,5.5649]
[1747193463152,59.08,179.74,179.68,59.12]
[1747193463355,59.08,179.75,179.68,59.12]
[1747193463555,59.12,179.78,179.68,59.12]
[1747193463751,5.5624,179.79,179.69,3.6331]
[1747193463956,364.0,179.8,179.7,3.51987396]
[1747193464158,59.08,179.8,179.71,1.7679]
[1747193464459,221.55320457,179.82,179.71,1.7679]
[1747193464757,162.45320457,179.82,179.76,3.51987396]
[1747193464956,162.45320457,179.82,179.79,3.51987396]
[1747193465256,162.45320457,179.82,179.81,5.5617]
[1747193465662,59.06,179.86,179.79,3.51987396]
[1747193465853,215.30103499,179.87,179.79,3.51987396]
[1747193466056,215.30103499,179.87,179.82,3.51987396]
[1747193466250,215.30103499,179.87,179.83,59.1]
[1747193466855,162.45320457,179.89,179.83,59.1]
[1747193468257,162.45320457,179.89,179.83,59.08]
[1747193469060,59.04,179.91,179.83,59.08]
[1747193469061,64.5988,179.91,179.85,5.5603]
[1747193469753,364.0,179.96,179.83,59.08]
[1747193469954,119.12888988,179.95,179.83,59.08]
[1747193470154,1.00888988,179.94,179.83,59.08]
[1747193470355,1.00888988,179.94,179.87,5.5595]
[1747193470560,1.00888988,179.94,179.83,59.08]
[1747193470860,4.52876384,179.94,179.84,64.6407]
[1747193471056,1.00888988,179.93,179.84,59.08]
[1747193471362,5.5589,179.9,179.84,64.6407]
[1747193471562,59.02,179.89,179.84,59.08]
[1747193471864,59.02,179.89,179.85,5.5604]
[1747193472068,64.5792,179.89,179.84,59.08]
[1747193472563,64.5792,179.89,179.85,5.5604]
[1747193472766,59.02,179.89,179.85,5.5604]
[1747193472958,59.02,179.89,179.84,64.6406]
[1747193473464,118.08,179.89,179.79,59.06]
[1747193473664,3.51987396,179.88,179.79,59.06]
[1747193473862,9.99442414,179.88,179.79,59.06]
[1747193474162,3.51987396,179.91,179.79,59.06]
[1747193474365,3.51987396,179.87,179.71,59.06]
[1747193474560,118.08,179.86,179.73,1.7625]
[1747193474954,3.51987396,179.84,179.72,60.9326]
[1747193475461,59.04,179.83,179.74,3.51987396]
[1747193475766,59.04,179.83,179.75,1.8239]
[1747193476162,59.04,179.83,179.8,5.5619]
[1747193476363,11.0265,179.85,179.8,5.5619]
[1747193476563,59.06,179.84,179.8,5.5619]
[1747193476866,367.51987396,179.9,179.78,59.06]
[1747193477067,60.0494339,179.89,179.78,59.06]
[1747193477373,5.56,179.87,179.78,59.06]
[1747193477562,59.04,179.89,179.78,59.06]
[1747193478767,3.51987396,179.93,179.79,60.8428]
[1747193479069,59.0,179.89,179.83,5.5608]
[1747193479370,59.0,179.89,179.84,64.5407]
[1747193479765,59.0,179.89,179.84,58.98]
[1747193481970,59.0,179.89,179.79,58.98]
[1747193482171,5.5613,179.83,179.79,58.98]
[1747193482366,58.98,179.84,179.79,58.98]
[1747193482778,5.5616,179.82,179.79,58.98]
[1747193484271,5.5611,179.83,179.79,64.5423]
[1747193484873,5.5636,179.75,179.67,58.98]
[1747193485068,5.5636,179.75,179.68,58.98]
[1747193485273,59.34,179.76,179.69,58.98]
[1747193486075,59.34,179.76,179.73,5.5641]
[1747193486773,59.3,179.79,179.74,58.98]
[1747193486973,59.3,179.79,179.75,58.98]
[1747193487173,59.3,179.79,179.76,5.563]
[1747193487476,58.98,179.84,179.75,58.98]
[1747193487674,59.28,179.82,179.75,58.98]
[1747193487876,59.28,179.81,179.78,5.5623]
[1747193488172,59.26,179.82,179.75,58.98]
[1747193488373,5.5607,179.84,179.75,58.98]
[1747193488574,59.26,179.83,179.75,58.98]
[1747193489677,64.8211,179.83,179.75,58.98]
[1747193490277,5.5611,179.83,179.75,58.98]
[1747193490470,64.7411,179.83,179.75,58.98]
[1747193491082,64.7411,179.83,179.79,5.5622]
[1747193491276,64.7411,179.83,179.75,58.98]
[1747193491775,5.5614,179.82,179.77,5.5628]
[1747193493777,5.5614,179.82,179.78,5.5625]
[1747193494477,64.7411,179.83,179.78,5.5625]
[1747193494977,59.18,179.83,179.78,5.5625]
[1747193495479,59.18,179.83,179.77,5.5628]
[1747193495978,59.18,179.83,179.75,58.98]
[1747193496178,5.5617,179.81,179.77,5.5628]
[1747193496378,59.18,179.83,179.75,58.98]
[1747193496773,64.7411,179.83,179.75,58.98]
[1747193496979,59.0,179.83,179.75,58.98]
[1747193497279,59.0,179.83,179.8,5.5617]
[1747193497577,422.98,179.88,179.8,58.98]
[1747193497879,59.0,179.87,179.8,58.98]
[1747193498882,5.5606,179.85,179.81,5.5614]
[1747193499380,5.5607,179.85,179.81,5.5614]
[1747193499882,64.5601,179.87,179.8,58.98]
[1747193500185,59.0,179.87,179.8,58.98]
[1747193500483,193.78564206,179.91,179.87,5.5596]
[1747193500683,59.0,179.9,179.87,5.5596]
[1747193501085,64.559,179.9,179.86,5.56]
[1747193501579,59.0,179.9,179.86,5.56]
[1747193501776,59.0,179.9,179.8,58.98]
[1747193502279,5.5595,179.88,179.8,58.98]
[1747193503288,5.5599,179.87,179.8,58.98]
[1747193503779,59.0,179.9,179.8,58.98]
[1747193503975,3.50803515,179.88,179.8,58.98]
[1747193504382,5.5606,179.85,179.81,5.5614]
[1747193504583,58.98,179.84,179.81,5.5614]
[1747193505690,58.98,179.84,179.82,5.5613]
[1747193505886,58.98,179.84,179.8,58.98]
[1747193506689,3.50803515,179.82,179.72,5.5644]
[1747193506884,3.50803515,179.78,179.72,5.5644]
[1747193507094,58.98,179.77,179.71,58.98]
[1747193508189,58.98,179.77,179.71,64.5445]
[1747193508790,5.5639,179.74,179.71,58.98]
[1747193508984,58.98,179.77,179.71,58.98]
[1747193510688,5.5639,179.74,179.71,58.98]
[1747193510893,58.98,179.77,179.71,58.98]
[1747193511587,5.62180099,179.79,179.71,58.98]
[1747193511789,59.0,179.76,179.71,58.98]
[1747193511997,59.0,179.76,179.67,59.0]
[1747193512188,118.0,179.76,179.67,59.0]
[1747193512389,369.62180099,179.75,179.67,59.0]
[1747193512692,375.23670099,179.75,179.63,59.0]
[1747193512892,365.00798398,179.74,179.63,59.0]
[1747193513187,364.0,179.74,179.63,59.0]
[1747193513600,5.5658,179.68,179.63,59.0]
[1747193513793,59.0,179.67,179.63,59.0]
[1747193514591,5.5665,179.66,179.59,59.0]
[1747193514790,59.0,179.67,179.59,59.0]
[1747193515797,59.0,179.67,179.61,5.5676]
[1747193516495,59.0,179.67,179.62,5.5675]
[1747193517198,5.5667,179.65,179.61,5.5678]
[1747193517897,59.0,179.67,179.59,59.0]
[1747193518091,59.02,179.66,179.56,1.7512]
[1747193518286,428.64180099,179.66,179.55,59.02]
[1747193518500,5.5691,179.57,179.53,5.57]
[1747193518799,59.02,179.56,179.5,59.02]
[1747193518986,5.57,179.55,179.5,64.591]
[1747193519193,59.02,179.56,179.5,59.02]
[1747193519590,5.57,179.54,179.5,64.591]
[1747193520086,59.02,179.56,179.5,59.02]
[1747193520286,364.0,179.6,179.5,59.02]
[1747193520494,59.02,179.59,179.5,59.02]
[1747193520698,59.02,179.59,179.54,5.5699]
[1747193520896,59.02,179.59,179.5,59.02]
[1747193521790,364.0,179.6,179.5,59.02]
[1747193521997,423.04,179.6,179.51,1.809]
[1747193523694,59.04,179.6,179.51,1.809]
[1747193523992,5.5698,179.55,179.5,64.5911]
[1747193524191,59.04,179.54,179.5,64.5911]
[1747193524593,64.6101,179.54,179.5,64.5911]
[1747193524789,59.04,179.54,179.46,481.02]
[1747193524991,59.04,179.54,179.44,59.04]
[1747193525189,59.04,179.54,179.46,5.5724]
[1747193525595,59.04,179.54,179.44,59.04]
[1747193525988,5.5715,179.5,179.44,59.04]
[1747193526197,59.04,179.49,179.44,59.04]
[1747193527093,59.04,179.49,179.42,5.5735]
[1747193527291,59.04,179.49,179.4,59.06]
[1747193527701,5.5723,179.47,179.4,59.06]
[1747193528199,5.5723,179.47,179.43,5.5732]
[1747193528400,5.5719,179.48,179.4,59.06]
[1747193528804,59.04,179.49,179.43,5.5732]
[1747193529003,5.5725,179.47,179.4,59.06]
[1747193529502,59.04,179.49,179.4,59.06]
[1747193529696,5.62180099,179.48,179.35,60.8362]
[1747193529893,6.62904064,179.48,179.35,60.8362]
[1747193530098,6.66053965,179.47,179.35,60.8362]
[1747193530299,5.6533,179.47,179.35,60.8362]
[1747193530699,59.06,179.46,179.35,60.8362]
[1747193530900,59.06,179.46,179.36,59.06]
[1747193531298,59.06,179.5,179.37,5.62180099]
[1747193531704,59.06,179.5,179.38,1.8804]
[1747193532810,59.06,179.5,179.48,5.5716]
[1747193533208,59.06,179.5,179.44,59.08]
[1747193533412,59.06,179.5,179.35,1.7562]
[1747193533613,6.28544483,179.49,179.35,1.7562]
[1747193533912,5.5732,179.44,179.35,1.7562]
[1747193534212,60.3,179.43,179.35,1.7562]
[1747193534514,60.3,179.43,179.4,5.5741]
[1747193534806,60.3,179.43,179.38,59.08]
[1747193535111,60.3,179.43,179.42,5.5737]
[1747193535304,5.2779,179.49,179.38,59.08]
[1747193535503,60.3,179.48,179.38,59.08]
[1747193535709,60.3,179.48,179.39,60.3]
[1747193536111,60.3,179.48,179.47,5.5719]
[1747193537016,60.24,179.51,179.44,59.08]
[1747193537319,60.24,179.51,179.41,62.7433]
[1747193537620,60.24,179.51,179.42,59.08]
[1747193537914,60.24,179.51,179.47,5.5721]
[1747193538119,60.24,179.51,179.42,59.08]
[1747193538316,60.24,179.51,179.43,1.8585]
[1747193539321,60.24,179.51,179.49,5.5715]
[1747193539620,60.24,179.51,179.43,1.8585]
[1747193540020,60.24,179.51,179.49,5.5715]
[1747193540519,60.24,179.51,179.43,1.8585]
[1747193540920,5.5714,179.5,179.46,5.5725]
[1747193541718,60.24,179.51,179.43,1.8585]
[1747193542922,60.24,179.51,179.47,5.5719]
[1747193543423,65.8112,179.51,179.46,5.5724]
[1747193543721,60.24,179.51,179.46,5.5724]
[1747193544017,5.5714,179.5,179.46,5.5724]
[1747193544323,5.5714,179.5,179.47,5.5722]
[1747193544727,5.5714,179.5,179.46,5.5724]
[1747193545122,65.811,179.51,179.43,1.8585]
[1747193545317,60.24,179.51,179.46,5.5724]
[1747193545622,5.5715,179.5,179.46,5.5724]
[1747193546225,60.24,179.51,179.49,5.5713]
[1747193546417,364.0,179.55,179.46,60.14]
[1747193547119,61.9,179.58,179.46,60.14]
[1747193548623,61.9,179.58,179.53,5.5702]
[1747193549228,61.9,179.58,179.51,65.7107]
[1747193549422,1.00857254,179.57,179.47,60.14]
[1747193549720,425.14857254,179.57,179.47,60.14]
[1747193550125,1.00857254,179.56,179.47,60.14]
[1747193550423,5.5703,179.54,179.49,5.5715]
[1747193550623,62.04,179.53,179.47,60.14]
[1747193553524,62.04,179.53,179.48,1.9121]
[1747193553725,62.02,179.57,179.49,1.7647]
[1747193554622,62.02,179.57,179.47,60.14]
[1747193554924,5.5709,179.52,179.47,65.7121]
[1747193555120,62.02,179.52,179.47,60.14]
[1747193555325,62.02,179.52,179.51,5.5709]
[1747193555724,62.02,179.52,179.47,60.14]